{"text_format":"1","workbook":"xlsx","n_sheets":4,"sheets":["Fill ACR","Board Result","Sheet1","Sheet4"],"not_rendered":{"charts":0,"images":1,"macros":1,"external_links":3,"defined_names":25,"comments":0,"pivot_tables":0},"unopened":[],"bounds":{"document_bytes":16777216,"sheet_cells":100000,"rows_first":2000,"rows_last":500,"rows_between":2000,"halvings":0,"cell_chars":16384,"cell_head_chars":4096},"cells_cut":0,"cells_raw":0,"read":"whole","date_system":"1900"}

{"sheet":"Fill ACR","index":0,"n_rows":163,"n_cols":25,"rows_kept":163,"cut":false,"hidden":false,"merged":[[105,12,115,12],[0,23,0,27],[3,2,3,4],[3,5,3,13],[4,3,4,8],[4,9,4,13],[5,3,5,4],[5,5,5,8],[5,9,5,10],[5,11,5,13],[0,2,0,13],[1,2,1,13],[2,2,2,8],[2,9,2,10],[2,11,2,13],[9,3,9,5],[9,6,9,8],[9,9,9,10],[9,11,9,13],[10,3,10,5],[10,6,10,8],[10,9,10,10],[10,11,10,13],[6,3,6,8],[6,9,6,13],[7,3,7,8],[7,9,7,13],[8,3,8,8],[8,9,8,13],[13,3,13,8],[13,9,13,13],[14,3,14,8],[14,9,14,13],[15,3,15,8],[15,9,15,13],[11,3,11,8],[11,9,11,13],[12,3,12,5],[12,6,12,8],[12,9,12,10],[12,11,12,13],[19,3,19,8],[19,9,19,13],[20,3,20,7],[22,3,22,13],[23,3,23,13],[27,13,32,13],[25,13,26,13],[16,3,16,8],[16,9,16,13],[17,3,17,8],[17,9,17,13],[18,3,18,8],[18,9,18,13],[60,3,60,10],[61,3,61,10],[62,3,62,10],[63,3,63,10],[64,3,64,10],[65,3,65,10],[49,2,49,13],[50,2,50,13],[56,3,56,10],[57,3,57,10],[58,3,58,10],[59,3,59,10],[57,2,60,2],[62,2,67,2],[72,3,72,10],[73,3,73,10],[74,3,74,10],[75,3,75,10],[76,3,76,10],[77,3,77,10],[66,3,66,10],[67,3,67,10],[68,3,68,10],[69,3,69,10],[70,3,70,10],[71,3,71,10],[84,3,84,10],[85,3,85,10],[86,3,86,10],[87,3,87,10],[88,3,88,10],[89,3,89,10],[78,3,78,10],[79,3,79,10],[80,3,80,10],[81,3,81,10],[82,3,82,10],[83,3,83,10],[96,3,96,10],[97,3,97,10],[98,3,98,10],[99,3,99,10],[100,3,100,10],[101,3,101,10],[90,3,90,10],[91,3,91,10],[92,3,92,10],[93,3,93,10],[94,3,94,10],[95,3,95,10],[109,3,109,10],[110,3,110,10],[111,3,111,10],[112,3,112,10],[113,3,113,10],[114,3,114,10],[102,3,102,10],[103,3,103,10],[105,3,105,10],[106,3,106,10],[107,3,107,10],[108,3,108,10],[104,3,104,10],[120,3,120,10],[121,3,121,10],[122,3,122,10],[123,3,123,10],[124,3,124,10],[115,3,115,10],[116,3,116,10],[117,3,117,10],[118,3,118,10],[119,3,119,10],[143,6,143,10],[143,11,143,12],[131,3,131,10],[132,3,132,10],[133,3,133,10],[137,3,137,10],[126,3,126,10],[127,3,127,10],[128,3,128,10],[129,3,129,10],[130,3,130,10],[134,3,134,10],[135,3,135,10],[136,3,136,10],[35,2,35,7],[156,8,156,13],[157,8,157,13],[159,3,159,13],[25,7,25,12],[25,6,26,6],[25,5,26,5],[25,4,26,4],[25,3,26,3],[144,2,144,13],[146,3,146,13],[147,2,159,2],[148,3,149,6],[148,8,148,13],[149,8,149,13],[152,3,153,6],[152,8,152,13],[153,8,153,13],[156,3,157,6],[138,3,138,12],[139,2,139,13],[141,2,141,10],[141,11,141,12],[142,2,142,12],[95,2,97,2],[100,2,103,2],[105,2,115,2],[44,3,44,9],[32,4,32,5],[45,3,45,9],[46,3,46,9],[26,11,26,12],[27,11,27,12],[28,11,28,12],[29,11,29,12],[30,11,30,12],[31,11,31,12],[32,11,32,12],[41,3,41,9],[37,3,37,9],[38,3,38,9],[39,3,39,9],[40,3,40,9],[43,3,43,9],[42,3,42,9],[33,9,33,13],[34,3,34,6],[34,8,34,13],[116,2,126,2],[125,3,125,10],[127,2,137,2],[57,13,60,13],[62,13,67,13],[68,13,73,13],[74,13,77,13],[79,13,80,13],[81,13,86,13],[87,13,90,13],[91,13,94,13],[95,13,97,13],[100,13,103,13],[105,13,115,13],[116,13,126,13],[127,13,137,13],[116,12,126,12],[127,12,137,12],[68,2,73,2],[74,2,77,2],[79,2,80,2],[81,2,86,2],[87,2,90,2],[91,2,94,2]]}
[null,null,"hor ivSy dy AiDAwpk/lYkcrwr  dI slwnw mulWkx irport \n(ijvyN KyqIbwVI, hom swieMs, imaUjk) : gryifMg ivSw hox qy \n(ey.sI.Awr.-13)"]
[null,null,"swl : 2022-23"]
[null,null,"Bwg - a   mu~FlI jwxkwrI",null,null,null,null,null,null,"XU fweIs kof :  "]
[null,null,"skUl dw nW Aqy ijlHw :  "]
[null,null,1,"AiDAwpk/AiDAwpkw dw nW"]
[null,null,2,"Ahudw",null,null,null,null,null,"E-Punjab ID No. :"]
[null,null,3,"ipqw dw nW"]
[null,null,4,"ilMg (iesqrI / purS)"]
[null,null,5,"jnm imqI"]
[null,null,6,"ADwr kwrf nMbr",null,null,null,null,null,"pYn nM:"]
[null,null,7,"spMrk nMbr :   mobwiel nM:",null,null,null,null,null,"eI.myl AweI.fI."]
[null,null,8,"mu~FlI qnKwh / gRyf py"]
[null,null,9,"sInIAwrqw nMbr",null,null,null,null,null,"jI.pI.AYP.nM:/prwn"]
[null,null,10,"syvw kwfr (styt/ijlHw/jW hor)"]
[null,null,11,"is~iKAw ivBwg iv~c hwzr hox dI imqI"]
[null,null,12,"mOjUdw kwfr qy hwzr hox dI imqI"]
[null,null,13,"mOjUdw stySn qy hwzr hox dI imqI"]
[null,null,14,"syvw mukq hox dI imqI"]
[null,null,15,"ividAk Xogqw"]
[null,null,16,"irport krn vwly AiDkwrI ADIn syvw krn dw smW kwl"]
[null,null,17,"AiDAwpk v~loN kYlMfr swl iv`c leIAW Cu~tIAW: ",null,null,null,null,"ieq: Cu~tI",null,"mYfIkl",null,"kmweI"]
[null,null,"Bwg -A  (pRI-mulMkx SIt)"]
[null,null,"1.","AiDAwpk duAwrw sbMDq swl dOrwn inBweIAW ivSyS syvwvW dw sMKyp vrxn :"]
[]
[null,null,"2.","AiDAwpk dy nqIjy"]
[null,null,null,"lVIN nM:","jmwq","pVwieAw \nivSw","iemiqhwn iv~c bYTy ivid: dI igxqI","jmwq dy v~K v~K gryfW iv`c pws ividAwrQIAW dI igxqI",null,null,null,null,null,"Bwg e Anuswr gxnW kIqy  200 iv~coN AMk"]
[null,null,null,null,null,null,null,"'e'y gRyf","'bI' gRyf","'sI' gRyf","'fI' gRyf","'eI' gRyf"]
[null,null,null,1,null,null,10,10,null,null,null,null,null,{"$f":"P31","v":200}]
[null,null,null,2,null,null,null,null,null,null,null,null,null,null,null,{"$f":"IF(G28<>SUM(H28:M28),1,2)","v":2}]
[null,null,null,3]
[null,null,null,4,null,null,null,null,null,null,null,null,null,null,null,{"$f":"MAX(P32,V32,W32)","v":200}]
[null,null,null,5,null,null,null,null,null,null,null,null,null,null,null,{"$f":"IF(Q33>99,200,IF(Q33>79,180,IF(Q33>59, 160,0)))","v":200},null,null,null,null,null,{"$f":"IF(V33>99,140,IF(V33>79,120,IF(V33>59,100,0)))","v":140},{"$f":"IF(W33>99,80,IF(W33>79,60,IF(W33>59,40,IF(W33>39,20,0))))","v":80}]
[null,null,null,null,"ku~l/AOsq pRqISq",null,{"$f":"SUM(G28:G32)","v":10},{"$f":"ROUND((SUM(H25:H32)/G33)*100,2) & \"%\"","v":"100%"},{"$f":"ROUND((SUM(I28:I32)/G33)*100,2) & \"%\"","v":"0%"},{"$f":"ROUND((SUM(J28:J32)/G33)*100,2) & \"%\"","v":"0%"},{"$f":"ROUND((SUM(K28:K32)/G33)*100,2) & \"%\"","v":"0%"},{"$f":"ROUND((SUM(L28:L32)/G33)*100,2) & \"%\"","v":"0%"},null,null,null,{"$f":"IF(Q33>99,200,IF(Q33>79,180,IF(Q33>59, 160,IF(R33>99,140,IF(R33>79,120,IF(R33>59,100,IF(S33>99,80,IF(S33>79,60,IF(S33>59,40,IF(S33>39,20,0))))))))))","v":200},{"$f":"ROUND((SUM(H28:H32)/G33)*100,2)","v":100},{"$f":"ROUND((SUM(I28:I32)/G33)*100,2)","v":0},{"$f":"ROUND((SUM(J28:J32)/G33)*100,2)","v":0},{"$f":"ROUND((SUM(K28:K32)/G33)*100,2)","v":0},{"$f":"ROUND((SUM(L28:L32)/G33)*100,2)","v":0},{"$f":"Q33+R33","v":100},{"$f":"V33+S33","v":100}]
[null,null,null,null,null,null,null,null,null,"……………………………"]
[null,null,null,null,null,null,null,null,"AiDAwpk dy hsqwKr"]
[null,null,"Bwg e : AiDAwpk dI mulWkx dI ivDI:",null,null,null,null,null,"ku~l AMk =200"]
[]
[null,null,1,"40 % ividAwrQIAw dy 'sI' jW ies qoN au~c gryf pRwpq krn qy",null,null,null,null,null,null,"…..20 AMk"]
[null,null,2,"60 % ividAwrQIAw dy 'sI' jW ies qoN au~c gryf pRwpq krn qy",null,null,null,null,null,null,"…..40 AMk"]
[null,null,3,"80 % ividAwrQIAw dy 'sI' jW ies qoN au~c gryf pRwpq krn qy",null,null,null,null,null,null,"…..60 AMk"]
[null,null,4,"swry vidAwrQIAw dy 'sI' jW ies qoN au~c gryf pRwpq krn qy",null,null,null,null,null,null,"…..80 AMk"]
[null,null,5,"60 % ividAwrQIAw dy 'bI' jW ies qoN au~c gryf pRwpq krn qy",null,null,null,null,null,null,"…..100 AMk"]
[null,null,6,"80 % ividAwrQIAw dy 'bI' jW ies qoN au~c gryf pRwpq krn qy",null,null,null,null,null,null,"…..120 AMk"]
[null,null,7,"swry vidAwrQIAw dy 'bI' jW ies qoN au~c gryf pRwpq krn qy",null,null,null,null,null,null,"…..140 AMk"]
[null,null,8,"60 % ividAwrQIAw dy 'ey' gryf pRwpq krn qy",null,null,null,null,null,null,"…..160 AMk"]
[null,null,9,"80 % ividAwrQIAw dy 'ey' gryf pRwpq krn qy",null,null,null,null,null,null,"…..180 AMk"]
[null,null,10,"swry ividAwrQIAw dy 'ey' gryf pRwpq krn qy",null,null,null,null,null,null,"…..200 AMk"]
[]
[]
[null,null,"not : jykr AiDAwpk Bwg-e dy ku~l AMkW dw 40% AMk pRwpq krdw hY qW hI Akwdimk Aqy sih-Akwdimk gqIivDIAW dy \n      pRwpq kIqy Amk joVy jwxgy["]
[null,null,"Bwg s. irport krn vwly AiDkwrI v~loN mulWkx"]
[]
[]
[]
[]
[]
[null,null,"lVI nM:","Akwdimk Aqy sihAkwdimk gqIivDIAW",null,null,null,null,null,null,null,"ku~l AMk","v~D qoN v~D kul AMk","pRwpq AMk"]
[null,null,1,"AiDAwpk v~loN skUl iv`c b~icAW dI igxqI iv~c vwDw krn leI kIqy auprwly",null,null,null,null,null,null,null,null,20]
[null,null,null,"pRweIvyt skUl iv`coN G~to G`t do ividAwrQI srkwrI skUL iv`c dwKl krvwaux qy",null,null,null,null,null,null,null,10]
[null,null,null,"skUl iv`c G~to-G~t 5 ividAwrQI dwKl krvwaux qy",null,null,null,null,null,null,null,10]
[null,null,null,"AiDAwpk duAwrw pVHwey jw rhy ividAwrQIAW dI igxqI iv~c G~to G~t 2 % dw vwDw krn qy",null,null,null,null,null,null,null,10]
[null,null,2,"AiDAwpk dy Awpxy b~cy srkwrI skUl iv`c pVHdy hox qy (pRI pRweImrI qoNN bwrvIN q~k) \nnot : \n(a) ijnHW AiDAwpkW dI sMqwn nhIN  hY jW Ajy kuAwry/kuAwrIAW hn, auhnW AiDAwpkW nUM 10 nMbr Alwt kIqy jwx [\n(A) ijnHW AiDAwpkW dy b~cy 10+2 q~k is~iKAw pRwpq krn dI aumr lMG cu~ky hn, auhnW AiDAwpkW nuM vI 10 nMbr Alwt kIqy jwx [ ",null,null,null,null,null,null,null,10,10]
[null,null,3,"AiDAwpn kwrz",null,null,null,null,null,null,null,"",20]
[null,null,null,"inrMqr Aqy imqI b~D kwpIAW dI jWc",null,null,null,null,null,null,null,4,""]
[null,null,null,"ivSy nwl sbMDq pRYktIkl PweIlW iv`c suMdr Aqy AwkrSk ic~qr bxwaux leI kIqy auprwilAW leI",null,null,null,null,null,null,null,4,""]
[null,null,null,"AiDAwpk fwierI",null,null,null,null,null,null,null,4,""]
[null,null,null,"svyr dI sBw iv`c BwSx (mhINny iv`c G~to-G~t do vwrI)",null,null,null,null,null,null,null,4,""]
[null,null,null,"AiDAwpk v~loN klws tYst lYx Aqy irkwrf myntyn krn qy (mhINny iv`c G~to-G~t do vwrI)",null,null,null,null,null,null,null,4,""]
[null,null,4,"ivSyS ijMmyvwrI/ieMcwrjiSp",null,null,null,null,null,null,null,"",10]
[null,null,null,"skwaUt,AYn.sI.sI., AYn.AYs.AYs. ieMcwrz",null,null,null,null,null,null,null,2,""]
[null,null,null,"dwKlw Kwrz ieMcwrz",null,null,null,null,null,null,null,2,""]
[null,null,null,"hwaUs ieMcwrz",null,null,null,null,null,null,null,2,""]
[null,null,null,"imf-fy-mIl ieMcwrz",null,null,null,null,null,null,null,2,""]
[null,null,null,"tweIm tybl ieMcrj",null,null,null,null,null,null,null,2,""]
[null,null,5,"ividAwrQIAW dIAW ivSyS jmwqW/kYNp leI kIqy gey au~dm",null,null,null,null,null,null,null,"",10]
[null,null,null,"srdIAW dIAW Cu~tIAW dOrwn ivSyS isKlweI kYNp/ jmwqW leI",null,null,null,null,null,null,null,2,""]
[null,null,null,"skUl smyN qoN pihlW jW bwAd jmwqW lgwaux leI",null,null,null,null,null,null,null,3,""]
[null,null,null,"grmIAW dIAW Cu~tIAW dOrwn smr kYNp/ jmwqW lgwaux leI (7-10 idn)",null,null,null,null,null,null,null,5,""]
[null,null,6,"ivSy nwl sbMDq v~K v~K idvs mnwauxw Aqy irkwrf myntyn krn qy",null,null,null,null,null,null,null,5,5]
[null,null,7,"skUl dw mYgzIn iqAwr krnw",null,null,null,null,null,null,null,"",5]
[null,null,null,"AiDAwpk v~loN skUl dy mYgzIn iqAwr krn iv`c Aqy pRkwiSq krvwaux iv`c sihXog dyx qy",null,null,null,null,null,null,null,5,""]
[null,null,8,"sYSn dOrwn pRsMsw p~qr/Avwrf pRwpq krn qy",null,null,null,null,null,null,null,"",10]
[null,null,null,"blwk/ qihsIl p~Dr qy",null,null,null,null,null,null,null,2,""]
[null,null,null,"ijlHw p~Dr qy",null,null,null,null,null,null,null,3,""]
[null,null,null,"styt p~Dr qy",null,null,null,null,null,null,null,5,""]
[null,null,null,"ivBwg dy au~c AiDkwrIAW qoN ivSyS pRsMsw p~qr pRwpq krn qy",null,null,null,null,null,null,null,10,""]
[null,null,null,"nYSnl Avwrf pRwpq krn qy",null,null,null,null,null,null,null,10,""]
[null,null,9,"AiDAwpk dw ividAwrQIAW dy mipAW nwl rwbqw",null,null,null,null,null,null,null,"",5]
[null,null,null,"SoSl mIfIAw rwhIN",null,null,null,null,null,null,null,1,""]
[null,null,null,"skUl iv`c mIitMgW rwhIN",null,null,null,null,null,null,null,1,""]
[null,null,null,"vtsAYp gru~p rwhIN",null,null,null,null,null,null,null,3,""]
[null,null,10,"AiDAwpk dI kimaUintI v~loN Awpxy skUl iv`c pwey Xogdwn dI SlwGw",null,null,null,null,null,null,null,"",5]
[null,null,null,"SoSl mIfIAw rwhIN",null,null,null,null,null,null,null,2,""]
[null,null,null,"ipRMt mIfIAw rwhIN",null,null,null,null,null,null,null,3,""]
[null,null,null,"ielYktRoinks mIfIAw rwhIN",null,null,null,null,null,null,null,5,""]
[null,null,11,"AiDAwpk v~loN isrP is~iKAw nwl sbMDq skwrwqimk AwrtIkl/lyK ipRMt mIfIAw iv`c pRkwiSq hox qy",null,null,null,null,null,null,null,"",10]
[null,null,null,"hr ie~k AwrtIkl/lyK pRkwiSq hox qy 01 nMbr",null,null,null,null,null,null,null,5,""]
[null,null,null,"is~iKAw Kyqr nwl sbMDq ie~k ikqwb pRkwSq hoxy qy",null,null,null,null,null,null,null,10,""]
[null,null,12,"skUL muKI jW ivBwg dy au~c AiDkwrIAW v~loN sONpy gey ivSyS kwrz nUM sPlqw pUrvk nypry cwVn qy",null,null,null,null,null,null,null,5,5]
[null,null,13,"AiDAwpk dI kMipaUtr iv`c muhwrq",null,null,null,null,null,null,null,5,5]
[null,null,14,"AiDAwpkW duAwrw skUl dI ibhqrI leI kimaUintI dy sihXog nwl kIqy gey kMmW dw vyrvw",null,null,null,null,null,null,null,"",10]
[null,null,null,"iek klws rUm dw suMdrIkrn jW buinAwdI FWcw iqAwr krn jW krvwaux qy",null,null,null,null,null,null,null,5,""]
[null,null,null,"skUL dI iemwrq dw suMdrIkrn jW buinAwdI FWcw iqAwr krn jW krvwaux qy",null,null,null,null,null,null,null,10,""]
[null,null,null,"skUl iv`c vyst mtIrIAl nUM vrqoN Xog bxwaux leI kIqy gey auprwilAW qy",null,null,null,null,null,null,null,5,""]
[null,null,15,"KyqIbwVI,imaUjk Aqy hom swieMs AiDAwpkW nwl sbMDq ivSys gqIivDIAW"]
[null,null,null,"KyqIbwVI AiDAwpk nwl sbMDq gqIivDIAW",null,null,null,null,null,null,null,"",75]
[null,null,null,"KyqIbwVI nwl sbMDq Pilf ivzt krvwaux qy",null,null,null,null,null,null,null,5]
[null,null,null,"skUl iv`c ikcn gwrfn ivksq krn qy",null,null,null,null,null,null,null,5]
[null,null,null,"KyqIbwVI nwl sbMDq myly/sYmInwr/XnIvristI/Agro tYk dI ivzt krvwaux qy",null,null,null,null,null,null,null,10]
[null,null,null,"skUl iv`c PwlqU jgHw nUM vrqoN Xog bnwaux leI kIqy auprwilAW leI",null,null,null,null,null,null,null,10]
[null,null,null,"sYSn dOrwn skUl/ipMf iv`c nvyN drKq/bUty lgwaux iv`c kIqy auprwilAW leI",null,null,null,null,null,null,null,10]
[null,null,null,"KyqIbwVI iv`c kItnwSk dvweIAW dI G~t vrqoN/prwlI nUM nW swVn leI jwgrUk krn leI kIqy auprwilAW leI",null,null,null,null,null,null,null,10]
[null,null,null,"nvyN pOdy/pnIrI iqAwr krn Aqy hor skUlW nUM vI aupl~bD krvwaux leI kIqy auprwilAW leI",null,null,null,null,null,null,null,10]
[null,null,null,"skUl iv`c kMpoizt ip~t iqAwr krnw",null,null,null,null,null,null,null,5]
[null,null,null,"AiDAwpk dI AwpxI ikhVy Kyqr iv`c mhuwrq hY    .......... aus Kyqr iv`c sYSn dOrwn Kud dIAW aupl~bDIAW krn qy",null,null,null,null,null,null,null,5]
[null,null,null,"ivSy nwl sbMDq ividAwrQIAW nUM iqAwr krn qy Aqy ijlHy p~Dr dy iksy mukwbly iv`c pRwpqI krn- qy (isrP pihlI jW dUjI pujISn hwsl krn qy)",null,null,null,null,null,null,null,5]
[null,null,null,"hom swieMs AiDAwpk nwl sbMDq gqIivDIAW",null,null,null,null,null,null,null,"",75]
[null,null,null,"hom swieMs nwl sbMDq iksy ieMfstrI dI ivzt krvwaux qy",null,null,null,null,null,null,null,10]
[null,null,null,"hom swieMs nwl sbMDq iksy kwlz/XunIvristI dI ivzt krvwaux qy",null,null,null,null,null,null,null,10]
[null,null,null,"ividAwrQIAW nUM pROPYSnl Aqy svY rojgwr leI iqAwr krn leI kIqy auprwilAW leI",null,null,null,null,null,null,null,5]
[null,null,null,"AiDAwpk duAwrw mltImIfIAw rwhI pRYzntySn iqAwr krky b~icAW nUM pVHwaux leI kIqy auprwilAW leI",null,null,null,null,null,null,null,10]
[null,null,null,"ivSy nwl sbMDq iksy pROPYSnl SKSIAq nUM skUl dy ividAwrQIAW dy rU-brU krvwaux qy",null,null,null,null,null,null,null,10]
[null,null,null,"skUl iv`c imf fy mIl iv`c sihXog dyx qy",null,null,null,null,null,null,null,5]
[null,null,null,"jMk Puf dI G~t vrqoN leI ividAwrQIAW nUM pRyrq krn leI kIqy auprwilAW qy",null,null,null,null,null,null,null,5]
[null,null,null,"AiDAwpk dI AwpxI ikhVy Kyqr iv`c mhuwrq hY    .......... aus Kyqr iv`c sYSn dOrwn Kud dIAW aupl~bDIAW krn qy",null,null,null,null,null,null,null,5]
[null,null,null,"ivSy nwl sbMDq ividAwrQIAW nUM iqAwr krn qy Aqy ijlHy p~Dr dy iksy mukwbly iv`c  qy (isrP pihlI jW dUjI pujISn hwsl krn qy) pRwpqI krn-",null,null,null,null,null,null,null,5]
[null,null,null,"skUl iv`c nmUny dI hom swieMs lyb. ivkisq krn/r~K rKwA krn qy",null,null,null,null,null,null,null,10]
[null,null,null,"imaUijk AiDAwpk nwl sbMDq gqIivDIAW",null,null,null,null,null,null,null,"",75]
[null,null,null,"svyr dI sBw iv`c pRBwv pUrn qrIky nwl rwStrI gIq, sbd gwien krvwaux qy",null,null,null,null,null,null,null,10]
[null,null,null,"svyr dI sBw iv`c imaUjIkl swzW dI vrqoN krn qy (frMm bIt, hrmonIAm, qblw, lwaUf spIkr Awid)",null,null,null,null,null,null,null,5]
[null,null,null,"v~K v~K smwrohW leI ividAwrQIAW dI isKlweI krvwaux qy",null,null,null,null,null,null,null,10]
[null,null,null,"skUl dI bYNf tIm iqAwr krn qy",null,null,null,null,null,null,null,5]
[null,null,null,"AiDAwpk dI AwpxI ikhVy Kyqr iv`c mhuwrq hY    .......... aus Kyqr iv`c sYSn dOrwn Kud dIAW aupl~bDIAW krn qy",null,null,null,null,null,null,null,5]
[null,null,null,"ivSy nwl sbMDq ividAwrQIAW nUM iqAwr krn qy Aqy ijlHy p~Dr dy iksy mukwbly iv`c pRwpqI - qy (isrP pihlI jW dUjI pujISn hwsl krn qy)",null,null,null,null,null,null,null,5]
[null,null,null,"skUl iv`c imaUijk rUm sQwipq krn/r~K rKwA krn qy",null,null,null,null,null,null,null,10]
[null,null,null,"ividAwrQIAW dI iksY kwlj/XunIvrstI dI sMgIq ivBwg dI ivijt krvwaux qy",null,null,null,null,null,null,null,10]
[null,null,null,"ividAwrQIAW nUM pROPYSnl Aqy svY rojgwr leI iqAwr krn leI kIqy auprwilAW leI",null,null,null,null,null,null,null,5]
[null,null,null,"ivSy nwl sbMDq iksy pROPYSnl SKSIAq nUM skUl dy ividAwrQIAW dy rU-brU krvwaux qy",null,null,null,null,null,null,null,10]
[null,null,null,"Bwg s (Akwdimk Aqy sihAkwdimk gqIivDIAW)dy ku~l pRwpq AMk",null,null,null,null,null,null,null,null,null,{"$f":"IF(Y142=\"Yes\",SUM(N58:N138),\"\")","v":""}]
[null,null,"not : skUl muKI sbMDq AiDAwpk qoN ey.sI.Awr. iv~c drz Akwdimk qy sih Akwdimk gqIivDIAW sbMDI pRwpqIAW/krvwey kMmW bwry ilKqI rUp iv~c pRwpq krnw XkInI bxwaux["]
[]
[null,null,"Bwg e (200 AMk) + Bwg s (200 AMk) = 400 AMkW iv`coN pRwpq AMkW dw joV : ",null,null,null,null,null,null,null,null,{"$f":"IF(Y142=\"Yes\",O142,\"\")","v":""},null,null,{"$f":"N28+N139","v":{"$error":"#VALUE!"}},null,null,null,null,null,null,null,null,null,"No"]
[null,null,"not : AiDAwpk v~loN Bwg e Aqy Bwg s iv~coN pRwpq AMkW nUM 100 AMkW iv`coN qbdIl kr ilAw jwvy"]
[null,null,null,null,null,null,"100 AMkW iv`coN pRwpq AMk ",null,null,null,null,{"$f":"IF(Y142=\"Yes\",ROUND((L142/4),0),\"\")","v":""}]
[null,null,"(not : auprokq AMk skUl muKI v~loN sbMDq gqIivDI dy irkwrf dy Adwr qy id~qy jwxgy[ ivBwg v~loN lgweI geI ifaUtI dyx qoN ienkwr krn vwly AiDAwpk dI ey.sI.Awr. iv~c ies dw ieMdrwz kIqw jwvy)"]
[]
[null,null,null,"AiDAwpk dI drjwbMdI :\n1. 81 qoN 100 mYirt q~k = au~qm      2. 61 qoN 80 mYirt q~k = bhuq A~Cw  3. 41 qoN 60 mYirt q~k = A~Cw\n4. 21 qoN 40 mYirt q~k = AOsq     5. 0 qoN 20 mYirt q~k = AOsq qoN G~t"]
[]
[null,null,null,{"$f":"\"drjwbMdI : =   \"&IF(Y142=\"Yes\",IFERROR(IF(L144>80,\"au`qm\",IF(L144>60,\"bhuq A`Cw\",IF(L144>40,\"A`Cw\",IF(L144>20,\"Aosq\",IF(L144>0,\"Aosq qoN G`t\",\"\"))))),\"\"),\"\")","v":"drjwbMdI : =   "},null,null,null,null,"………………………………"]
[null,null,null,null,null,null,null,null,"irport krn vwly AiDkwrI dy hsqwKr"]
[]
[]
[null,null,null,"drjwbMdI :",null,null,null,null,"………………………………"]
[null,null,null,null,null,null,null,null,"rIivaU krn vwly AiDkwrI dy hsqwKr"]
[]
[]
[null,null,null,"drjwbMdI :",null,null,null,null,"………………………………"]
[null,null,null,null,null,null,null,null,"pRvwn krn vwly AiDkwrI dy hsqwKr"]
[]
[null,null,null,{"$f":"\"AiDAwpk nW qy Ahudw/skUl : \" & J5 & \" (\" & F6 & \") - \" & F4","v":"AiDAwpk nW qy Ahudw/skUl :  () - "}]
[]
[]
[null,null,null,null,"www.Teachershelp.in"]

{"sheet":"Board Result","index":1,"n_rows":117,"n_cols":6,"rows_kept":117,"cut":false,"hidden":false,"merged":[[0,0,0,4]]}
["gzikp ;e{b f;Zfynk p'ov\npkoQthA gqhfynk, wkou - 2023 (o?r{bo)\n"]
["Sub Code","Subject","Total ","Pass","%age"]
[1,"GENERAL ENGLISH",296709,279625,94.24,"%"]
[2,"GENERAL PUNJABI",296368,294613,99.4,"%"]
[3,"PUNJAB HISTORY AND CULTURE",341,325,95.3,"%"]
[4,"PUNJABI (ELECTIVE)",54197,53452,98.62,"%"]
[5,"HINDI (ELECTIVE)",18757,18403,98.11,"%"]
[6,"ENGLISH (ELECTIVE)",7154,7053,98.58,"%"]
[7,"URDU",176,174,98.86,"%"]
[19,"SANSKRIT",178,177,99.43,"%"]
[25,"HISTORY",144493,143126,99.05,"%"]
[26,"ECONOMICS",48042,47547,98.96,"%"]
[28,"MATHEMATICS",40285,39918,99.08,"%"]
[31,"POLITICAL SCIENCE",94099,92914,98.74,"%"]
[32,"SOCIOLOGY",23044,22807,98.97,"%"]
[33,"PUBLIC ADMINISTRATION",189,184,97.35,"%"]
[35,"RELIGION",3026,2931,96.86,"%"]
[36,"MUSIC (VOCAL)",1622,1573,96.97,"%"]
[37,"MUSIC (INSTRUMENTAL)",371,368,99.19,"%"]
[38,"MUSIC (TABLA)",17,17,100,"%"]
[39,"GURMAT SANGEET",28,27,96.42,"%"]
[40,"DANCE",36,33,91.66,"%"]
[41,"PHILOSOPHY",76,71,93.42,"%"]
[42,"GEOGRAPHY",12105,11926,98.52,"%"]
[43,"DEFENCE STUDIES",44,19,43.18,"%"]
[44,"PSYCHOLOGY",713,711,99.71,"%"]
[45,"HOME SCIENCE",4407,4282,97.16,"%"]
[46,"DRAWING AND PAINTING",9548,9467,99.15,"%"]
[48,"COMMERCIAL ART",1475,1448,98.16,"%"]
[49,"PHYSICAL EDUCATION & SPORTS",161381,159577,98.88,"%"]
[50,"HISTORY & APPRECIATION OF ART",52,39,75,"%"]
[52,"PHYSICS",45504,45306,99.56,"%"]
[53,"CHEMISTRY",45504,45319,99.59,"%"]
[54,"BIOLOGY",21760,21623,99.37,"%"]
[65,"AGRICULTURE",1801,1763,97.89,"%"]
[66,"MODELLING & SCULPTURE",573,560,97.73,"%"]
[72,"COMPUTER APPLICATION",1976,1954,98.88,"%"]
[73,"COMMERCIAL CROPS",385,383,99.48,"%"]
[74,"LANDSCAPING AND FLORICULTURE",385,381,98.96,"%"]
[75,"POST HARVEST TECHNOLOGY & PRESERVATION",385,378,98.18,"%"]
[92,"FOOD PROCESSING",569,530,93.14,"%"]
[93,"PLANT MANAGEMENT",569,563,98.94,"%"]
[94,"FOOD PACKAGING",569,561,98.59,"%"]
[95,"DRESS MAKING",1019,1004,98.52,"%"]
[96,"COMMERCIAL CLOTHING",1019,999,98.03,"%"]
[97,"UNIT MANAGEMENT",1019,999,98.03,"%"]
[98,"FASHIONED KNITWEAR",450,439,97.55,"%"]
[99,"CIRCULAR KNITTING",450,438,97.33,"%"]
[100,"TEXTILE YARN CALCULATIONS & GARMENT MAKING",450,438,97.33,"%"]
[101,"FABRIC STRUCTURE AND DESIGNING",434,427,98.38,"%"]
[102,"TEXTILE TESTING AND DYEING",434,425,97.92,"%"]
[103,"POWER LOOM MECHANICS AND OPERATIONS",434,425,97.92,"%"]
[104,"TEXTILE DESIGNING AND PRINTING - II",502,497,99,"%"]
[105,"TEXTILE TESTING AND FINISHING",502,497,99,"%"]
[106,"TEXTILE DYEING - II",502,495,98.6,"%"]
[107,"ELEMENTS OF ELECTRICAL TECHNOLOGY",1417,1382,97.53,"%"]
[108,"ELECTRICAL DOMESTIC APPLIANCES - II",1417,1400,98.8,"%"]
[109,"MATERIALS & WORKSHOP PRACTICE - II",1417,1389,98.02,"%"]
[110,"DIGITAL ELECTRONICS AND COMMUNICATION",904,890,98.45,"%"]
[111,"TEST AND MEASURING INSTRUMENTS",904,892,98.67,"%"]
[112,"ELECTRONICS DEVICE AND CIRCUITS",904,880,97.34,"%"]
[113,"ENGINEERING DRAWING - II",372,368,98.92,"%"]
[114,"WORKSHOP PRACTICE - II",372,368,98.92,"%"]
[115,"CONSTRUCTION MATERIAL AND ESTIMATE",372,365,98.11,"%"]
[116,"FITTING AND WELDING",1030,1008,97.86,"%"]
[117,"MACHINE TOOL OPERATION",1030,1003,97.37,"%"]
[118,"MECHANICAL DRAWING - II",1030,1011,98.15,"%"]
[122,"WORKSHOP TECHNOLOGY",369,365,98.91,"%"]
[123,"GARAGE PRACTICE AND MANAGEMENT",369,365,98.91,"%"]
[124,"AUTOMOBILE SUSPENSION AND CONTROLS",369,365,98.91,"%"]
[125,"OBJECT ORIENTED PROGRAMMING IN C++",612,602,98.36,"%"]
[126,"DESK TOP PUBLISHING",612,599,97.87,"%"]
[127,"NETWORKING",612,600,98.03,"%"]
[137,"ON THE JOB TRAINING",12318,12256,99.49,"%"]
[138,"GENERAL FOUNDATION COURSE",10,10,100,"%"]
[139,"ENVIRONMENTAL EDUCATION",296709,293276,98.84,"%"]
[141,"BUSINESS STUDIES-II",33595,33482,99.66,"%"]
[142,"ACCOUNTANCY-II",33594,33283,99.07,"%"]
[144,"FUNDAMENTALS OF E-BUSINESS (C)",17488,17434,99.69,"%"]
[146,"COMPUTER SCIENCE",296709,294886,99.38,"%"]
[150,"MEDIA STUDIES",22,22,100,"%"]
[169,"PRINCIPLES & PRACTICES OF INSURANCE - II",275,269,97.81,"%"]
[170,"INSURANCE LEGISLATION - II",275,270,98.18,"%"]
[171,"INSURANCE SALESMANSHIP - II",275,267,97.09,"%"]
[172,"ADVANCED MANAGEMENT-II",710,695,97.88,"%"]
[173,"MARKETING MANAGEMENT - II",710,701,98.73,"%"]
[174,"SALESMANSHIP - II",710,700,98.59,"%"]
[181,"MANAGEMENT - II",520,516,99.23,"%"]
[182,"TECHNOLOGY & E-COMMERCE - II",520,517,99.42,"%"]
[183,"IMPORT MANAGEMENT",520,517,99.42,"%"]
[187,"BOOK KEEPING - II",288,284,98.61,"%"]
[188,"APPLICATION OF MANAGEMENT",288,283,98.26,"%"]
[189,"CO-OPERATIVE MANAGEMENT - II",288,283,98.26,"%"]
[190,"ELEMENTS OF BOOK KEEPING - II",317,315,99.36,"%"]
[191,"PRINCIPLES OF MANAGEMENT - II",317,315,99.36,"%"]
[192,"FUNDAMENTALS OF INCOME TAX - II",317,316,99.68,"%"]
[196,"RETAIL",3318,3303,99.54,"%"]
[197,"AUTOMOBILE",866,861,99.42,"%"]
[198,"HEALTH CARE",7416,7359,99.23,"%"]
[199,"INFORMATION TECHNOLOGY / INFORMATION TECHNOLOGY ENABLED SERVICES",6423,6343,98.75,"%"]
[201,"BEAUTY AND WELLNESS",7640,7591,99.35,"%"]
[202,"TRAVEL AND TOURISM",1043,1032,98.94,"%"]
[203,"PHYSICAL EDUCATION AND SPORTS",649,646,99.53,"%"]
[204,"AGRICULTURE (NSQF)",1974,1949,98.73,"%"]
[206,"APPAREL (NSQF)",2456,2431,98.98,"%"]
[207,"CONSTRUCTION",1783,1757,98.54,"%"]
[208,"PLUMBING",1703,1685,98.94,"%"]
[209,"NATIONAL CADET CORPS",514,437,85.01,"%"]
[210,"WELCOME LIFE",296709,295169,99.48,"%"]
[211,"OFFICE MANAGEMENT-II",1594,1580,99.12,"%"]
[212,"TYPOGRAPHY-II (ENGLISH/PUNJABI)",1594,1574,98.74,"%"]
[213,"ACCOUNTING AND E-COMMERCE",1157,1146,99.04,"%"]
[214,"SHORTHAND-II (ENGLISH/PUNJABI)",437,433,99.08,"%"]
[215,"MANAGERIAL ECONOMICS AND STATISTICS",552,545,98.73,"%"]
[216,"ADVANCES AND FOREIGN EXCHANGE",552,544,98.55,"%"]
[217,"INTRODUCTION TO COMPUTER APPLICATIONS",552,544,98.55,"%"]
[218,"POWER",193,189,97.92,"%"]

{"sheet":"Sheet1","index":2,"n_rows":9,"n_cols":1,"rows_kept":9,"cut":false,"hidden":true,"merged":[]}
[]
["Class P"]
["ਛੇਵੀਂ"]
["ਸੱਤਵੀਂ"]
["ਅੱਠਵੀਂ"]
["ਨੌਵੀਂ"]
["ਦਸਵੀਂ"]
["10+1 "]
["10+2"]

{"sheet":"Sheet4","index":3,"n_rows":568,"n_cols":7,"rows_kept":568,"cut":false,"hidden":true,"merged":[]}
[6,"06:Drawind/Painting related Lecturer/Teachers (Grading)",2,"frwieMg/pyitMg/ic~qrklw ivSy nwl sbMDq lYkcrwr/AiDAwpk  dI slwnw mulWkx irport \ngryifMg ivSw hox qy     (ey.sI.Awr.-6)","AiDAwpk/AiDAwpkw dw nW","AiDAwpk v~loN kYlMfr swl iv`c leIAW Cu~tIAW: ","Yes"]
[8,"08:Physical Education Lecturer/Teachers (Grading)",4,"srIrk is`iKAw lYkcrwr/AiDAwpk  dI slwnw mulWkx irport \ngryifMg ivSw hox qy  (ey.sI.Awr.-8)","AiDAwpk/AiDAwpkw dw nW","AiDAwpk v~loN kYlMfr swl iv`c leIAW Cu~tIAW: ","No"]
[10,"10: Vocational Lecturer/Teachers (Grading)",6,"vokySnl lYkcrwr/AiDAwpk  dI slwnw mulWkx irport \ngryifMg ivSw hox qy     (ey.sI.Awr.-10)","AiDAwpk/AiDAwpkw dw nW","AiDAwpk v~loN kYlMfr swl iv`c leIAW Cu~tIAW: "]
[13,"13:Other Subject Lecturer/Teachers (as Agriculture,Home Science,Music etc.) Grading",8,"hor ivSy dy AiDAwpk/lYkcrwr  dI slwnw mulWkx irport \n(ijvyN KyqIbwVI, hom swieMs, imaUjk) : gryifMg ivSw hox qy \n(ey.sI.Awr.-13)","AiDAwpk/AiDAwpkw dw nW","AiDAwpk v~loN kYlMfr swl iv`c leIAW Cu~tIAW: "]
[]
[]
[]
[]
[]
[]
[]
[]
[]
[14,"6th","Middle","CyvIN"]
[null,"7th","Middle","s~qvIN"]
[null,"8th","Middle","A~TvIN"]
[null,"9th","Matric","nOvIN"]
[null,"10th","Matric","dsvIN"]
[null,"11th","Secondary","10+1 "]
[null,"12th","Secondary","10+2"]
[]
[]
[]
[]
[]
[]
[]
[]
[]
[]
[]
[]
[]
[]
[]
[]
[]
[]
[]
[]
[]
[]
[]
[]
[]
[]
[]
[]
[]
[]
[]
[]
[]
[]
[]
[]
[]
[]
[]
[]
[]
[]
[]
[]
[]
[]
[]
[]
[]
[]
[3,"AiDAwpn kwrz",null,20,5]
[null,"inrMqr Aqy imqI b~D kwpIAW dI jWc",4]
[null,"ivSy nwl sbMDq frwieMg PweIlW iv`c suMdr Aqy AwkrSk ic~qr bxwaux leI kIqy auprwilAW leI",4]
[null,"AiDAwpk fwierI",4]
[null,"svyr dI sBw iv`c BwSx (mhINny iv`c G~to-G~t do vwrI)",4]
[null,"AiDAwpk v~loN klws tYst lYx Aqy irkwrf myntyn krn qy (mhINny iv`c G~to-G~t do vwrI)",4]
[4,"ivSyS ijMymyvwrI/ieMcwrjiSp",null,10]
[null,"skwaUt,AYn.sI.sI., AYn.AYs.AYs. ieMcwrz",2]
[null,"dwKlw Kwrz ieMcwrz",2]
[null,"hwaUs ieMcwrz",2]
[null,"imf-fy-mIl ieMcwrz",2]
[null,"tweIm tybl ieMcrj",2]
[5,"frwieMg rUm/pyitMg kOrnr dy ivkisq krn leI kIqy auprwly",null,10]
[null,"nmUny dw pyitMg kOrnr ivkisq krn/ r~K rKwA krn qy",5]
[null,"nmUny dw frwieMg / pyitMg rUm ivkisq krn qy Aqy rUm nwl sbMDq Awp jW dwnI s~jxw qoN mYtIrIAl (pyitMgz) iek~TYIAW krn qy",5]
[null,"AiDAwpk duAwrw Awpxy XqnW / ivSy dy ividAwrQIAW rwhIN skUl iv`c mwto, smW swrxI, nkSy Awid bxwaux qy",5]
[6,"ividAwrQIAW dIAW ivSyS jmwqW/kYNp leI kIqy gey au~dm",null,10]
[null,"srdIAW dIAW Cu~tIAW dOrwn ivSyS isKlweI kYNp/ jmwqW leI",2]
[null,"skUl smyN qoN pihlW jW bwAd jmwqW lgwaux leI",3]
[null,"grmIAW dIAW Cu~tIAW dOrwn smr kYNp/ jmwqW lgwaux leI (7-10 idn)",5]
[7,"AiDAwpk dI ivSy iv`c muhwrq",null,10]
[null,"jy AiDAwpk ic~qrklw frwieMg iv`c muhwrq r~Kdw hY qW",5]
[null,"jy AiDAwpk skyl frwieMg / mkYnIkl frwieMg iv`c muhwrq r~Kdw hY qW",5]
[8,"AiDAwpk v~loN is~Kx isKwaux sm~grI (tI.Ayl.Aym.) dI vrqoN krn qy",null,20]
[null,"vwtr klr Aqy Awiel pystl klr dI vrqoN",3]
[null,"poAwieMt Aqy PlYt burS dI vrqoN",4]
[null,"klyA molifMg dI isKlweI",3]
[null,"pYnisl skYicMg Aqy SyifMg dI isKlweI",3]
[null,"jmwq iv~c frwieMg borf dI vrqoN",4]
[null,"v~K v~K qrW dIAW pYnislW dI jwxkwrI Aqy vrqoN",3]
[9,"mltImIfIAW rwhIN/ ieMnovyitv qrIky nwl is~iKAw pRdwn krn leI kIqy audm",null,10]
[null,"kMipaUtr rwhIN rMgW dw imSrx isKwaux qy",5]
[null,"mltImIfIAW rwhIN ivSy nUM rock aqy pRBwv pUrn bxwaux leI jmwq iuv`c vrqoN",5]
[null,"gqIivDIAW Adwirq is~Kx-isKwaux pRikrIAw Apnwaux qy",5]
[10,"AiDAwpk duAwrw Awpxy Kyqr iv~c ivSyS nwmxw K~tx qy",10,10]
[11,"ivSy nwl sbMDq tUr/Awrt gYlrI dI ivzt krvwaux qy",10,10]
[12,"ivSy nwl sbMDq v~K v~K idvs mnwauxw Aqy irkwrf myntyn krn qy",5,5]
[13,"skUl dw mYgzIn iqAwr krnw",null,5]
[null,"AiDAwpk v~loN skUl dy mYgzIn iqAwr krn iv`c Aqy pRkwiSq krvwaux iv`c sihXog dyx qy",5]
[14,"sYSn dOrwn pRsMsw p~qr/Avwrf pRwpq krn qy",null,10]
[null,"blwk/ qihsIl p~Dr qy",2]
[null,"ijlHw p~Dr qy",3]
[null,"styt p~Dr qy",5]
[null,"ivBwg dy au~c AiDkwrIAW qoN ivSyS pRsMsw p~qr pRwpq krn qy",10]
[null,"nYSnl Avwrf pRwpq krn qy",10]
[15,"ividAwrQIAW dIAW ivSy nwl sbMDq mukwbilAW iv`c SmUlIAq krvwaux qy",null,5]
[null,"blwk/ qihsIl p~Dr qy",2]
[null,"ijlHw p~Dr qy",3]
[null,"styt p~Dr qy",5]
[null,"rwStrI p~Dr qy",5]
[16,"AiDAwpk dw ividAwrQIAW dy mipAW nwl rwbqw",null,5]
[null,"SoSl mIfIAw rwhIN",1]
[null,"skUl iv`c mIitMgW rwhIN",1]
[null,"vtsAYp gru~p rwhIN",3]
[17,"AiDAwpk dI kimaUintI v~loN Awpxy skUl iv`c pwey Xogdwn dI SlwGw",null,5]
[null,"SoSl mIfIAw rwhIN",2]
[null,"ipRMt mIfIAw rwhIN",3]
[null,"ielYktRoinks mIfIAw rwhIN",5]
[18,"AiDAwpk v~loN isrP is~iKAw nwl sbMDq skwrwqimk AwrtIkl/lyK ipRMt mIfIAw iv`c pRkwiSq hox qy",null,10]
[null,"hr ie~k AwrtIkl/lyK pRkwiSq hox qy 01 nMbr",5]
[null,"is~iKAw Kyqr nwl sbMDq ie~k ikqwb pRkwSq hoxy qy",10]
[19,"skUL muKI jW ivBwg dy au~c AiDkwrIAW v~loN sONpy gey ivSyS kwrz nUM sPlqw pUrvk nypry cwVn qy",5,5]
[20,"AiDAwpk dI kMipaUtr iv`c muhwrq",5,5]
[21,"AiDAwpkW duAwrw skUl dI ibhqrI leI kimaUintI dy sihXog nwl kIqy gey kMmW dw vyrvw",null,10]
[null,"iek klws rUm dw suMdrIkrn jW buinAwdI FWcw iqAwr krn jW krvwaux qy",5]
[null,"skUL dI iemwrq dw suMdrIkrn jW buinAwdI FWcw iqAwr krn jW krvwaux qy",10]
[null,"skUl iv`c vyst mtIrIAl nUM vrqoN Xog bxwaux leI kIqy gey auprwilAW qy",5]
[]
[]
[]
[]
[]
[]
[]
[]
[]
[]
[]
[]
[]
[]
[]
[]
[]
[]
[]
[]
[]
[]
[]
[]
[]
[]
[]
[]
[]
[]
[]
[]
[]
[]
[]
[]
[]
[]
[]
[]
[]
[]
[]
[]
[]
[]
[]
[]
[]
[]
[]
[]
[]
[]
[]
[]
[]
[]
[]
[]
[]
[]
[]
[]
[]
[]
[]
[]
[]
[]
[]
[]
[]
[]
[3,"AiDAwpn kwrz",null,20,6]
[null,"inrMqr Aqy imqI b~D kwpIAW dI jWc",4]
[null,"gixq/swieMs nwl sbMDq pRYktIkl PweIlW iv`c suMdr Aqy AwkrSk ic~qr bxwaux leI kIqy auprwilAW leI",4]
[null,"AiDAwpk fwierI",4]
[null,"svyr dI sBw iv`c BwSx (mhINny iv`c G~to-G~t do vwrI)",4]
[null,"AiDAwpk v~loN klws tYst lYx Aqy irkwrf myntyn krn qy (mhINny iv`c G~to-G~t do vwrI)",4]
[4,"svyr dI sBw",null,20]
[null,"pRBwv pUrn qrIky nwl svyr dI sBw krvwaux qy",4]
[null,"imaUjIkl swjW dI vrqoN krn qy (frMm bIt, hrmonIAm, qblw, lwaUf spIkr Awid)",4]
[null,"pRBwv pUrn qrIky nwl pI.tI. Krvwaux qy",4]
[null,"rozwnw hwaUs PlYg lihrwaux qy",4]
[null,"svyr dI sBw iv`c ividAwrQIAW dy Awaux qy jwx iv`c AnuSwsn kwiem r~Kx qy",4]
[5,"KyfW iv`c pRpqIAW",null,30]
[null,"blwk/jon dIAW KyfW iv`c Bwg lYx qy",3]
[null,"blwk/zon  dIAW KyfW ivc pujISn lYx qy (isrP pihlI jW dUjI)",5]
[null,"ijlHy dIAW KyfW iv`c Bwg lYx qy",5]
[null,"ijlHy dIAW KyfW ivc pujISn lYUx qy (isrP pihlI, dUjI jw qIjI)",8]
[null,"AMqr ijlw KyfW iv`c Bwg lYx qy",10]
[null,"AMqr ijlw KyfW ivc pujISn lYx qy (isrP pihlI, dUjI jw qIjI)",15]
[null,"rwStrI KyfW iv`c Bwg/pujISn lYx qy",20]
[6,"srIirk is~iKAw lYkcrwr/AiDAwpk dI AwpxI Kyf iv`c auplbDIAW",null,5]
[null,"AiDAwpk dI AwpxI ikhVI Kyf iv`c mhuwrq hY : .............................. aus Kyf iv`c Kud dIAW-",5]
[null,"auplbdIAW/pRwpqI krn qy (sYSn dOrwn iksy vI tUrnWmYNt iv`c phIlI dUjI jW qIjI pujISn hwsl krn qy)"]
[null,"AwpxI Kyf dy hI iKfwrI iqAwr krn qy Aqy ijlHy p~Dr dy iksy tUrnWmYNt iv~c pRwpqI krn qy-",5]
[null,"(isrP pihlI jW dUjI pujISn hwsl krn qy)"]
[7,"KyfW dy tUrnWmYNt iv`c ifaUtI nBwaux qy",null,5]
[null,"blwk/zon dIAW KyfW iv`c ifaUtI dyx qy",1]
[null,"ijlHy dIAW KyfW iv`c ifaUtI dyx qy",2]
[null,"AMqr ijlw KyfW iv`c ifaUtI dyx qy",3]
[null,"rwStrI KyfW iv`c ifaUtI dyx qy",5]
[8,"skUl dI AwpxI bYNf tIm iqAwr krn qy",5,5]
[9,"ivSyS ijMmyvwrI/ieMcwrjiSp",null,10]
[null,"skwaUt,AYn.sI.sI., AYn.AYs.AYs. ieMcwrz",2]
[null,"dwKlw Kwrz ieMcwrz",2]
[null,"hwaUs ieMcwrz",2]
[null,"imf-fy-mIl ieMcwrz",2]
[null,"tweIm tybl ieMcrj",2]
[10,"skUl dw grwauNf ivkisq krn leI kIqy auprwly",null,5]
[null,"AiDAwpk duAwrw Awpxy XqnW / ividAwrQIAW dy sihXog rwhIN skUl grwauNf/ Kyf ienPrwstrkcr iqAwr krn Aqy r~K rKwA krn qy",5]
[11,"ividAwrQIAW dIAW ivSyS jmwqW/kYNp leI kIqy gey au~dm",null,10]
[null,"srdIAW dIAW Cu~tIAW dOrwn ivSyS Kyyf isKlweI kYNp/ jmwqW leI (03 idn q~k)",2]
[null,"skUl smyN qoN pihlW jW bwAd Kyf isKlweI krvwaux leI",3]
[null,"grmIAW dIAW Cu~tIAW dOrwn smr Kyf kYNp lgwaux leI (7-10 idn)",5]
[12,"mltImIfIAW rwhIN/ ieMnovyitv qrIky nwl is~iKAw pRdwn krn leI kIqy audm",null,10]
[null,"mltImIfIAW rwhIN KyfW bwry uividAwrQIAW nUM isKlweI dyxw",5]
[null,"gqIivDIAW Adwirq is~Kx-isKwaux pRikrIAw Apnwaux qy",5]
[13,"ivSy nwl sbMDq v~K v~K idvs mnwauxw",5,5]
[14,"skUl dw mYgzIn iqAwr krnw",null,5]
[null,"AiDAwpk v~loN skUl dy mYgzIn iqAwr krn iv`c Aqy pRkwiSq krvwaux iv`c sihXog dyx qy",5]
[15,"sYSn dOrwn pRsMsw p~qr/Avwrf pRwpq krn qy",null,10]
[null,"blwk/ qihsIl p~Dr qy",2]
[null,"ijlHw p~Dr qy",3]
[null,"styt p~Dr qy",5]
[null,"ivBwg dy au~c AiDkwrIAW qoN ivSyS pRsMsw p~qr pRwpq krn qy",10]
[null,"nYSnl Avwrf pRwpq krn qy",10]
[16,"AiDAwpk dw ividAwrQIAW dy mipAW nwl rwbqw",null,5]
[null,"SoSl mIfIAw rwhIN",1]
[null,"skUl iv`c mIitMgW rwhIN",1]
[null,"vtsAYp gru~p rwhIN",3]
[17,"AiDAwpk dI kimaUintI v~loN Awpxy skUl iv`c pwey Xogdwn dI SlwGw",null,5]
[null,"SoSl mIfIAw rwhIN",2]
[null,"ipRMt mIfIAw rwhIN",3]
[null,"ielYktRoinks mIfIAw rwhIN",5]
[18,"AiDAwpk v~loN isrP is~iKAw nwl sbMDq skwrwqimk AwrtIkl/lyK ipRMt mIfIAw iv`c pRkwiSq hox qy",null,5]
[null,"hr ie~k AwrtIkl/lyK pRkwiSq hox qy 01 nMbr",5]
[null,"is~iKAw Kyqr nwl sbMDq ie~k ikqwb pRkwSq hoxy qy",5]
[19,"skUL muKI jW ivBwg dy au~c AiDkwrIAW v~loN sONpy gey ivSyS kwrz nUM sPlqw pUrvk nypry cwVn qy",5,5]
[20,"AiDAwpk dI kMipaUtr iv`c muhwrq",5,5]
[21,"AiDAwpkW duAwrw skUl dI ibhqrI leI kimaUintI dy sihXog nwl kIqy gey kMmW dw vyrvw",null,10]
[null,"iek klws rUm dw suMdrIkrn jW buinAwdI FWcw iqAwr krn jW krvwaux qy",5]
[null,"skUL dI iemwrq dw suMdrIkrn jW buinAwdI FWcw iqAwr krn jW krvwaux qy",10]
[null,"skUl iv`c vyst mtIrIAl nUM vrqoN Xog bxwaux leI kIqy gey auprwilAW qy",5]
[]
[]
[]
[]
[]
[]
[]
[]
[]
[]
[]
[]
[]
[]
[]
[]
[]
[]
[]
[]
[]
[]
[]
[]
[]
[]
[]
[]
[]
[]
[]
[]
[]
[]
[]
[]
[]
[]
[]
[]
[]
[]
[]
[]
[]
[]
[]
[]
[]
[]
[]
[]
[]
[]
[]
[]
[]
[]
[]
[]
[]
[]
[]
[]
[]
[]
[]
[3,"AiDAwpn kwrz",null,20,7]
[null,"inrMqr Aqy imqI b~D kwpIAW dI jWc",4]
[null,"ivSy nwl sbMDq pRYktIkl PweIlW iv`c suMdr Aqy AwkrSk ic~qr bxwaux leI kIqy auprwilAW leI",4]
[null,"AiDAwpk fwierI",4]
[null,"svyr dI sBw iv`c BwSx (mhINny iv`c G~to-G~t do vwrI)",4]
[null,"AiDAwpk v~loN klws tYst lYx Aqy irkwrf myntyn krn qy (mhINny iv`c G~to-G~t do vwrI)",4]
[4,"ivSyS ijMmyvwrI/ieMcwrjiSp",null,10]
[null,"skwaUt,AYn.sI.sI., AYn.AYs.AYs. ieMcwrz",2]
[null,"dwKlw Kwrz ieMcwrz",2]
[null,"hwaUs ieMcwrz",2]
[null,"imf-fy-mIl ieMcwrz",2]
[null,"tweIm tybl ieMcrj",2]
[5,"ividAwrQIAW dIAW ivSyS jmwqW/kYNp leI kIqy gey au~dm",null,10]
[null,"srdIAW dIAW Cu~tIAW dOrwn ivSyS isKlweI kYNp/ jmwqW leI",2]
[null,"skUl smyN qoN pihlW jW bwAd jmwqW lgwaux leI",3]
[null,"grmIAW dIAW Cu~tIAW dOrwn smr kYNp/ jmwqW lgwaux leI (7-10 idn)",5]
[6,"ivSy nwl sbMDq v~K v~K idvs mnwauxw Aqy irkwrf myntyn krn qy",5,5]
[7,"skUl dw mYgzIn iqAwr krnw",null,5]
[null,"AiDAwpk v~loN skUl dy mYgzIn iqAwr krn iv`c Aqy pRkwiSq krvwaux iv`c sihXog dyx qy",5]
[8,"sYSn dOrwn pRsMsw p~qr/Avwrf pRwpq krn qy",null,10]
[null,"blwk/ qihsIl p~Dr qy",2]
[null,"ijlHw p~Dr qy",3]
[null,"styt p~Dr qy",5]
[null,"ivBwg dy au~c AiDkwrIAW qoN ivSyS pRsMsw p~qr pRwpq krn qy",10]
[null,"nYSnl Avwrf pRwpq krn qy",10]
[9,"AiDAwpk dw ividAwrQIAW dy mipAW nwl rwbqw",null,5]
[null,"SoSl mIfIAw rwhIN",1]
[null,"skUl iv`c mIitMgW rwhIN",1]
[null,"vtsAYp gru~p rwhIN",3]
[10,"AiDAwpk dI kimaUintI v~loN Awpxy skUl iv`c pwey Xogdwn dI SlwGw",null,5]
[null,"SoSl mIfIAw rwhIN",2]
[null,"ipRMt mIfIAw rwhIN",3]
[null,"ielYktRoinks mIfIAw rwhIN",5]
[11,"AiDAwpk v~loN isrP is~iKAw nwl sbMDq skwrwqimk AwrtIkl/lyK ipRMt mIfIAw iv`c pRkwiSq hox qy",null,10]
[null,"hr ie~k AwrtIkl/lyK pRkwiSq hox qy 01 nMbr",5]
[null,"is~iKAw Kyqr nwl sbMDq ie~k ikqwb pRkwSq hoxy qy",10]
[12,"skUL muKI jW ivBwg dy au~c AiDkwrIAW v~loN sONpy gey ivSyS kwrz nUM sPlqw pUrvk nypry cwVn qy",5,5]
[13,"AiDAwpk dI kMipaUtr iv`c muhwrq",5,5]
[14,"AiDAwpkW duAwrw skUl dI ibhqrI leI kimaUintI dy sihXog nwl kIqy gey kMmW dw vyrvw",null,10]
[null,"iek klws rUm dw suMdrIkrn jW buinAwdI FWcw iqAwr krn jW krvwaux qy",5]
[null,"skUL dI iemwrq dw suMdrIkrn jW buinAwdI FWcw iqAwr krn jW krvwaux qy",10]
[null,"skUl iv`c vyst mtIrIAl nUM vrqoN Xog bxwaux leI kIqy gey auprwilAW qy",5]
[15,"vokySnl lYkcrwr/AiDAwpk nwl sbMDq ivSyS gqIivDIAW",null,75]
[null,"vokySnl tRyf nwl sbMDq lYb sYt Ap krn Aqy sbMDq smwn auplbD krvwaux leI kIqy Xqn",10]
[null,"vokySnl lYb. iv~c mOjUd swjo smwn/XMqrW dI auicq vrqoN krn qy",5]
[null,"vokySnl tRyf nwl sbMDq iksy ieMfstrI dI ivzt krvwaux qy (sYSn dOrwn do ivzt)",10]
[null,"vokySnl tRyf dy pws AwaUt ividAwrQIAW dw irkwrf myntyn (Polo Ap) krn qy (ipCly pMj swlW dw)",5]
[null,"vokySnl tRyf dy ividAwrQIAW dI jOb plysmYNt leI kIqy XqnW leI",10]
[null,"AiDAwpk duAwrw mltImIfIAw rwhI pRYzntySn iqAwr krky b~icAW nUM pVHwaux leI kIqy auprwilAW leI",10]
[null,"vokySnl tRyf nwl sbMDq skUL iv`c kMm-kwr nUM pRPUlq krn leI AiDAwpk dI BwgIdwrI leI",5]
[null,"ivSy nwl sbMDq ividAWrQIAW nUM iqAwr krn qy Aqy iksy mukwbly iv`c pRwpqI krn qyy"]
[null,"blwk/ qihsIl p~Dr qy",2]
[null,"ijlHw p~Dr qy",3]
[null,"styt p~Dr qy",5]
[null,"ivSy nwl sbMDq iksy pROPYSnl SKSIAq nUM skUl dy ividAwrQIAW dy rU-brU krvwaux qy",10]
[]
[]
[]
[]
[]
[]
[]
[]
[]
[]
[]
[]
[]
[]
[]
[]
[]
[]
[]
[]
[]
[]
[]
[]
[]
[]
[]
[]
[]
[]
[]
[]
[]
[]
[]
[]
[]
[]
[]
[]
[]
[]
[]
[]
[]
[]
[]
[]
[]
[]
[]
[]
[]
[]
[]
[]
[]
[]
[]
[]
[]
[]
[]
[]
[]
[]
[]
[]
[]
[]
[]
[]
[]
[]
[]
[]
[]
[]
[]
[]
[]
[]
[]
[]
[]
[3,"AiDAwpn kwrz",null,20,9]
[null,"inrMqr Aqy imqI b~D kwpIAW dI jWc",4]
[null,"ivSy nwl sbMDq pRYktIkl PweIlW iv`c suMdr Aqy AwkrSk ic~qr bxwaux leI kIqy auprwilAW leI",4]
[null,"AiDAwpk fwierI",4]
[null,"svyr dI sBw iv`c BwSx (mhINny iv`c G~to-G~t do vwrI)",4]
[null,"AiDAwpk v~loN klws tYst lYx Aqy irkwrf myntyn krn qy (mhINny iv`c G~to-G~t do vwrI)",4]
[4,"ivSyS ijMmyvwrI/ieMcwrjiSp",null,10]
[null,"skwaUt,AYn.sI.sI., AYn.AYs.AYs. ieMcwrz",2]
[null,"dwKlw Kwrz ieMcwrz",2]
[null,"hwaUs ieMcwrz",2]
[null,"imf-fy-mIl ieMcwrz",2]
[null,"tweIm tybl ieMcrj",2]
[5,"ividAwrQIAW dIAW ivSyS jmwqW/kYNp leI kIqy gey au~dm",null,10]
[null,"srdIAW dIAW Cu~tIAW dOrwn ivSyS isKlweI kYNp/ jmwqW leI",2]
[null,"skUl smyN qoN pihlW jW bwAd jmwqW lgwaux leI",3]
[null,"grmIAW dIAW Cu~tIAW dOrwn smr kYNp/ jmwqW lgwaux leI (7-10 idn)",5]
[6,"ivSy nwl sbMDq v~K v~K idvs mnwauxw Aqy irkwrf myntyn krn qy",5,5]
[7,"skUl dw mYgzIn iqAwr krnw",null,5]
[null,"AiDAwpk v~loN skUl dy mYgzIn iqAwr krn iv`c Aqy pRkwiSq krvwaux iv`c sihXog dyx qy",5]
[8,"sYSn dOrwn pRsMsw p~qr/Avwrf pRwpq krn qy",null,10]
[null,"blwk/ qihsIl p~Dr qy",2]
[null,"ijlHw p~Dr qy",3]
[null,"styt p~Dr qy",5]
[null,"ivBwg dy au~c AiDkwrIAW qoN ivSyS pRsMsw p~qr pRwpq krn qy",10]
[null,"nYSnl Avwrf pRwpq krn qy",10]
[9,"AiDAwpk dw ividAwrQIAW dy mipAW nwl rwbqw",null,5]
[null,"SoSl mIfIAw rwhIN",1]
[null,"skUl iv`c mIitMgW rwhIN",1]
[null,"vtsAYp gru~p rwhIN",3]
[10,"AiDAwpk dI kimaUintI v~loN Awpxy skUl iv`c pwey Xogdwn dI SlwGw",null,5]
[null,"SoSl mIfIAw rwhIN",2]
[null,"ipRMt mIfIAw rwhIN",3]
[null,"ielYktRoinks mIfIAw rwhIN",5]
[11,"AiDAwpk v~loN isrP is~iKAw nwl sbMDq skwrwqimk AwrtIkl/lyK ipRMt mIfIAw iv`c pRkwiSq hox qy",null,10]
[null,"hr ie~k AwrtIkl/lyK pRkwiSq hox qy 01 nMbr",5]
[null,"is~iKAw Kyqr nwl sbMDq ie~k ikqwb pRkwSq hoxy qy",10]
[12,"skUL muKI jW ivBwg dy au~c AiDkwrIAW v~loN sONpy gey ivSyS kwrz nUM sPlqw pUrvk nypry cwVn qy",5,5]
[13,"AiDAwpk dI kMipaUtr iv`c muhwrq",5,5]
[14,"AiDAwpkW duAwrw skUl dI ibhqrI leI kimaUintI dy sihXog nwl kIqy gey kMmW dw vyrvw",null,10]
[null,"iek klws rUm dw suMdrIkrn jW buinAwdI FWcw iqAwr krn jW krvwaux qy",5]
[null,"skUL dI iemwrq dw suMdrIkrn jW buinAwdI FWcw iqAwr krn jW krvwaux qy",10]
[null,"skUl iv`c vyst mtIrIAl nUM vrqoN Xog bxwaux leI kIqy gey auprwilAW qy",5]
[15,"KyqIbwVI AiDAwpk nwl sbMDq gqIivDIAW",null,75]
[null,"KyqIbwVI nwl sbMDq Pilf ivzt krvwaux qy",5]
[null,"skUl iv`c ikcn gwrfn ivksq krn qy",5]
[null,"KyqIbwVI nwl sbMDq myly/sYmInwr/XnIvristI/Agro tYk dI ivzt krvwaux qy",10]
[null,"skUl iv`c PwlqU jgHw nUM vrqoN Xog bnwaux leI kIqy auprwilAW leI",10]
[null,"sYSn dOrwn skUl/ipMf iv`c nvyN drKq/bUty lgwaux iv`c kIqy auprwilAW leI",10]
[null,"KyqIbwVI iv`c kItnwSk dvweIAW dI G~t vrqoN/prwlI nUM nW swVn leI jwgrUk krn leI kIqy auprwilAW leI",10]
[null,"nvyN pOdy/pnIrI iqAwr krn Aqy hor skUlW nUM vI aupl~bD krvwaux leI kIqy auprwilAW leI",10]
[null,"skUl iv`c kMpoizt ip~t iqAwr krnw",5]
[null,"AiDAwpk dI AwpxI ikhVy Kyqr iv`c mhuwrq hY    .......... aus Kyqr iv`c sYSn dOrwn Kud dIAW aupl~bDIAW krn qy",5]
[null,"ivSy nwl sbMDq ividAwrQIAW nUM iqAwr krn qy Aqy ijlHy p~Dr dy iksy mukwbly iv`c pRwpqI krn-",5]
[null,"qy (isrP pihlI jW dUjI pujISn hwsl krn qy)"]
[15,"hom swieMs AiDAwpk nwl sbMDq gqIivDIAW",null,75]
[null,"hom swieMs nwl sbMDq iksy ieMfstrI dI ivzt krvwaux qy",10]
[null,"hom swieMs nwl sbMDq iksy kwlz/XunIvristI dI ivzt krvwaux qy",10]
[null,"ividAwrQIAW nUM pROPYSnl Aqy svY rojgwr leI iqAwr krn leI kIqy auprwilAW leI",5]
[null,"AiDAwpk duAwrw mltImIfIAw rwhI pRYzntySn iqAwr krky b~icAW nUM pVHwaux leI kIqy auprwilAW leI",10]
[null,"ivSy nwl sbMDq iksy pROPYSnl SKSIAq nUM skUl dy ividAwrQIAW dy rU-brU krvwaux qy",10]
[null,"skUl iv`c imf fy mIl iv`c sihXog dyx qy",5]
[null,"jMk Puf dI G~t vrqoN leI ividAwrQIAW nUM pRyrq krn leI kIqy auprwilAW qy",5]
[null,"AiDAwpk dI AwpxI ikhVy Kyqr iv`c mhuwrq hY    .......... aus Kyqr iv`c sYSn dOrwn Kud dIAW aupl~bDIAW krn qy",5]
[null,"ivSy nwl sbMDq ividAwrQIAW nUM iqAwr krn qy Aqy ijlHy p~Dr dy iksy mukwbly iv`c pRwpqI krn-",5]
[null," qy (isrP pihlI jW dUjI pujISn hwsl krn qy)"]
[null,"skUl iv`c nmUny dI hom swieMs lyb. ivkisq krn/r~K rKwA krn qy",10]
[15,"imaUijk AiDAwpk nwl sbMDq gqIivDIAW",null,75]
[null,"svyr dI sBw iv`c pRBwv pUrn qrIky nwl rwStrI gIq, sbd gwien krvwaux qy",10]
[null,"svyr dI sBw iv`c imaUjIkl swzW dI vrqoN krn qy (frMm bIt, hrmonIAm, qblw, lwaUf spIkr Awid)",5]
[null,"v~K v~K smwrohW leI ividAwrQIAW dI isKlweI krvwaux qy",10]
[null,"skUl dI bYNf tIm iqAwr krn qy",5]
[null,"AiDAwpk dI AwpxI ikhVy Kyqr iv`c mhuwrq hY    .......... aus Kyqr iv`c sYSn dOrwn Kud dIAW aupl~bDIAW krn qy",5]
[null,"ivSy nwl sbMDq ividAwrQIAW nUM iqAwr krn qy Aqy ijlHy p~Dr dy iksy mukwbly iv`c pRwpqI -",5]
[null,"krn qy (isrP pihlI jW dUjI pujISn hwsl krn qy)"]
[null,"skUl iv`c imaUijk rUm sQwipq krn/r~K rKwA krn qy",10]
[null,"ividAwrQIAw nUM iksy kwlz/XunIvristI dy sMgIq ivBwg dI ivzt krvwaux qy",10]
[null,"ividAwrQIAW nUM pROPYSnl Aqy svY rojgwr leI iqAwr krn leI kIqy auprwilAW qy",5]
[null,"ivSy nwl sbMDq iksy pROPYSnl SKSIAq nUM skUl dy ividAwrQIAW dy rU-brU krvwaux qy",10]